[Event "3rd FIDE WCCC Rapid G10 2019"]
[Site "Minsk"]
[Date "2019.08.17"]
[Round "7.5"]
[White "Liashkevich, Lizaveta"]
[Black "Kulygina, Uliyana"]
[Result "1-0"]
[ECO "E80"]
[WhiteElo "1370"]
[BlackElo "1358"]
[Annotator "NA"]
[PlyCount "117"]
[EventDate "2019.08.16"]
[EventType "swiss"]
[EventCountry "BLR"]
[SourceTitle "playchess.com"]
[Source "ChessBase"]
[SourceQuality "1"]
[TimeControl "600+5"]

1. d4 {[%emt 0:00:00]} Nf6 {[%emt 0:00:00]} 2. c4 {[%emt 0:00:00]} g6 {[%emt 0:00:01]} 3. Nc3 {[%emt 0:00:02]} Bg7 {[%emt 0:00:04]} 4. e4 {[%emt 0:00:01]} d6 {[%emt 0:00:02]} 5. f3 {[%emt 0:00:04]} Nc6 {[%emt 0:00:52]} 6. Be3 {[%emt 0:00:05]} a6 {[%emt 0:00:42]} 7. Qd2 {[%emt 0:00:13]} Rb8 {[%emt 0:00:12]} 8. Bd3 {[%emt 0:01:20]} e5 {[%emt 0:01:18]} 9. d5 {[%emt 0:00:08]} Nd4 {[%emt 0:00:02]} 10. Nge2 {[%emt 0:00:16]} Nxe2 {[%emt 0:00:45]} 11. Bxe2 {[%emt 0:00:11]} Bd7 {[%emt 0:00:13]} 12. a4 {[%emt 0:01:19]} h6 {[%emt 0:01:33]} 13. O-O {[%emt 0:00:40]} h5 {[%emt 0:00:26]} 14. b4 {[%emt 0:00:33]} O-O {[%emt 0:00:05]} 15. c5 {[%emt 0:00:34]} Ne8 {[%emt 0:00:10]} 16. b5 {[%emt 0:00:41]} f5 {[%emt 0:00:21]} 17. bxa6 {[%emt 0:00:27]} f4 {[%emt 0:00:10]} 18. Bf2 {[%emt 0:00:09]} bxa6 {[%emt 0:00:33]} 19. Bxa6 {[%emt 0:00:10]} Qg5 {[%emt 0:00:03]} 20. c6 {[%emt 0:00:47]} Bc8 {[%emt 0:00:38]} 21. Bxc8 {[%emt 0:00:06]} Rxc8 {[%emt 0:00:02]} 22. a5 {[%emt 0:00:05]} h4 {[%emt 0:00:04]} 23. Kh1 {[%emt 0:00:18]} Nf6 {[%emt 0:00:05]} 24. Qe1 {[%emt 0:00:34]} h3 {[%emt 0:00:31]} 25. gxh3 {[%emt 0:00:49]} Qh5 {[%emt 0:00:08]} 26. Qe2 {[%emt 0:00:08]} Qxh3 {[%emt 0:00:06]} 27. Nb5 {[%emt 0:00:27]} Kf7 {[%emt 0:00:34]} 28. Be1 {[%emt 0:00:12]} Rh8 {[%emt 0:00:13]} 29. a6 {[%emt 0:00:06]} Nh5 {[%emt 0:01:27]} 30. Qg2 {[%emt 0:00:25]} Ng3+ {[%emt 0:00:54]} 31. Bxg3 {[%emt 0:00:13]} fxg3 {[%emt 0:00:01]} 32. Qxh3 {[%emt 0:00:04]} Rxh3 {[%emt 0:00:02]} 33. Ra2 {[%emt 0:00:13]} Rch8 {[%emt 0:00:03]} 34. a7 {[%emt 0:00:16]} g2+ {[%emt 0:00:07]} 35. Rxg2 {[%emt 0:00:06]} Bh6 {[%emt 0:00:17]} 36. Rff2 {[%emt 0:00:21]} Bf4 {[%emt 0:00:06]} 37. Kg1 {[%emt 0:00:13]} Be3 {[%emt 0:00:02]} 38. Kf1 {[%emt 0:00:26]} Bxf2 {[%emt 0:00:01]} 39. Kxf2 {[%emt 0:00:02]} Ra8 {[%emt 0:00:08]} 40. Ke3 {[%emt 0:00:06]} Rhh8 {[%emt 0:00:07]} 41. Ra2 {[%emt 0:00:02]} Rhc8 {[%emt 0:00:06]} 42. f4 {[%emt 0:00:08]} exf4+ {[%emt 0:00:04]} 43. Kxf4 {[%emt 0:00:01]} Ke7 {[%emt 0:00:02]} 44. Ke3 {[%emt 0:00:12]} Kf7 {[%emt 0:00:13]} 45. Rg2 {[%emt 0:00:05]} Kg7 {[%emt 0:00:01]} 46. h4 {[%emt 0:00:04]} Kh6 {[%emt 0:00:03]} 47. Kd4 {[%emt 0:00:08]} Kh7 {[%emt 0:00:09]} 48. Kc4 {[%emt 0:00:03]} Kh6 {[%emt 0:00:08]} 49. Kb4 {[%emt 0:00:01]} Kg7 {[%emt 0:00:01]} 50. Ka5 {[%emt 0:00:01]} Kh7 {[%emt 0:00:07]} 51. Ka6 {[%emt 0:00:02]} Kh6 {[%emt 0:00:02]} 52. Rf2 {[%emt 0:00:03]} Kg7 {[%emt 0:00:01]} 53. Rf3 {[%emt 0:00:02]} Kg8 {[%emt 0:00:02]} 54. Rf6 {[%emt 0:00:06]} Kg7 {[%emt 0:00:01]} 55. Rf4 {[%emt 0:00:02]} Kg8 {[%emt 0:00:02]} 56. Kb7 {[%emt 0:00:07]} Kg7 {[%emt 0:00:02]} 57. Nxc7 {[%emt 0:00:05]} Rxa7+ {[%emt 0:00:05]} 58. Kxc8 {[%emt 0:00:03]} Ra4 {[%emt 0:00:05]} 59. Kd7 {[%emt 0:00:03]} 1-0

[Event "3rd FIDE WCCC Rapid G10 2019"]
[Site "Minsk"]
[Date "2019.08.17"]
[Round "7.6"]
[White "Mai, Hieu Linh"]
[Black "Dolinskaya, Mariia"]
[Result "0-1"]
[ECO "C05"]
[WhiteElo "1344"]
[BlackElo "1460"]
[Annotator "NA"]
[PlyCount "40"]
[EventDate "2019.08.16"]
[EventType "swiss"]
[EventCountry "BLR"]
[SourceTitle "playchess.com"]
[Source "ChessBase"]
[SourceQuality "1"]
[TimeControl "600+5"]

1. e4 {[%emt 0:00:00]} e6 {[%emt 0:00:00]} 2. d4 {[%emt 0:00:00]} d5 {[%emt 0:00:00]} 3. Nd2 {[%emt 0:00:00]} Nf6 {[%emt 0:00:00]} 4. e5 {[%emt 0:00:01]} Nfd7 {[%emt 0:00:00]} 5. Bd3 {[%emt 0:00:01]} c5 {[%emt 0:00:01]} 6. c3 {[%emt 0:00:01]} Nc6 {[%emt 0:00:01]} 7. Ne2 {[%emt 0:00:02]} Qb6 {[%emt 0:00:02]} 8. Nf3 {[%emt 0:00:02]} cxd4 {[%emt 0:00:01]} 9. cxd4 {[%emt 0:00:02]} f6 {[%emt 0:00:02]} 10. exf6 {[%emt 0:00:05]} Nxf6 {[%emt 0:00:02]} 11. O-O {[%emt 0:00:04]} Bd6 {[%emt 0:00:05]} 12. b3 {[%emt 0:00:02]} O-O {[%emt 0:00:06]} 13. Bb2 {[%emt 0:00:02]} Bd7 {[%emt 0:00:13]} 14. Ne5 {[%emt 0:00:37]} Bxe5 {[%emt 0:00:33]} 15. dxe5 {[%emt 0:00:03]} Ng4 {[%emt 0:00:06]} 16. Qc2 {[%emt 0:02:40]} Nxf2 {[%emt 0:01:17]} 17. Bxh7+ {[%emt 0:01:56]} Kh8 18. Bg6 {[%emt 0:03:04]} Nd1+ {[%emt 0:02:16]} 19. Kh1 {[%emt 0:00:15]} Rxf1+ {[%emt 0:00:04]} 20. Ng1 {[%emt 0:02:31]} Rxg1# {[%emt 0:00:03]} 0-1

[Event "3rd FIDE WCCC Rapid G10 2019"]
[Site "Minsk"]
[Date "2019.08.17"]
[Round "8.1"]
[White "Fedorova, Olesya"]
[Black "Khamdamova, Afruza"]
[Result "0-1"]
[ECO "C89"]
[WhiteElo "1578"]
[BlackElo "1607"]
[Annotator "NA"]
[PlyCount "144"]
[EventDate "2019.08.16"]
[EventType "swiss"]
[EventCountry "BLR"]
[SourceTitle "playchess.com"]
[Source "ChessBase"]
[SourceQuality "1"]
[TimeControl "600+5"]

1. e4 {[%emt 0:00:00]} e5 {[%emt 0:00:00]} 2. Nf3 {[%emt 0:00:00]} Nc6 {[%emt 0:00:00]} 3. Bb5 {[%emt 0:00:00]} a6 {[%emt 0:00:00]} 4. Ba4 {[%emt 0:00:00]} Nf6 {[%emt 0:00:00]} 5. O-O {[%emt 0:00:03]} Be7 {[%emt 0:00:00]} 6. Re1 {[%emt 0:00:02]} b5 {[%emt 0:00:01]} 7. Bb3 {[%emt 0:00:02]} O-O {[%emt 0:00:02]} 8. c3 {[%emt 0:00:09]} d5 {[%emt 0:00:12]} 9. exd5 {[%emt 0:00:05]} Nxd5 {[%emt 0:00:00]} 10. Nxe5 {[%emt 0:00:07]} Nxe5 {[%emt 0:00:01]} 11. Rxe5 c6 12. Qf3 {[%emt 0:01:08]} Bd6 {[%emt 0:00:23]} 13. Re1 {[%emt 0:00:08]} Re8 {[%emt 0:00:47]} 14. Rxe8+ {[%emt 0:00:28]} Qxe8 {[%emt 0:00:01]} 15. Qd1 {[%emt 0:00:09]} Qe5 {[%emt 0:02:57]} 16. g3 {[%emt 0:00:36]} Bh3 {[%emt 0:00:09]} 17. d4 {[%emt 0:00:27]} Qe4 {[%emt 0:00:02]} 18. f3 {[%emt 0:00:02]} Qg6 {[%emt 0:00:01]} 19. Bxd5 {[%emt 0:00:12]} Bxg3 {[%emt 0:02:36]} 20. Be4 {[%emt 0:00:40]} f5 {[%emt 0:00:01]} 21. Qc2 {[%emt 0:00:39]} Bh4+ {[%emt 0:00:25]} 22. Kh1 {[%emt 0:00:09]} fxe4 {[%emt 0:00:01]} 23. Be3 {[%emt 0:00:23]} Rf8 {[%emt 0:00:48]} 24. Na3 {[%emt 0:00:41]} Rxf3 {[%emt 0:00:11]} 25. Rg1 {[%emt 0:00:16]} Qf5 {[%emt 0:00:30]} 26. Bh6 {[%emt 0:00:44]} g6 {[%emt 0:01:02]} 27. Qb3+ {[%emt 0:00:09]} Kh8 {[%emt 0:00:02]} 28. Qd1 {[%emt 0:01:19]} Rf2 {[%emt 0:00:35]} 29. d5 {[%emt 0:00:43]} Qxd5 {[%emt 0:00:13]} 30. Qxd5 {[%emt 0:00:11]} cxd5 {[%emt 0:00:01]} 31. Rd1 {[%emt 0:00:25]} Kg8 {[%emt 0:00:07]} 32. Kg1 {[%emt 0:00:05]} Kf7 {[%emt 0:00:14]} 33. Be3 {[%emt 0:00:14]} Rg2+ {[%emt 0:00:04]} 34. Kh1 {[%emt 0:00:02]} Ke6 {[%emt 0:00:02]} 35. Bd4 {[%emt 0:00:11]} Rg4 {[%emt 0:00:22]} 36. Rd2 {[%emt 0:00:13]} Rf4 {[%emt 0:00:04]} 37. Rd1 {[%emt 0:00:06]} Bf6 {[%emt 0:00:06]} 38. Nc2 {[%emt 0:00:07]} Bg4 {[%emt 0:00:10]} 39. Rd2 {[%emt 0:00:24]} Bf3+ {[%emt 0:00:10]} 40. Kg1 {[%emt 0:00:01]} Rg4+ {[%emt 0:00:05]} 41. Kf1 {[%emt 0:00:01]} Bg5 {[%emt 0:00:03]} 42. Be3 {[%emt 0:00:06]} Bxe3 {[%emt 0:00:27]} 43. Nxe3 {[%emt 0:00:02]} Rg5 {[%emt 0:00:00]} 44. b4 {[%emt 0:00:13]} Rh5 {[%emt 0:00:02]} 45. Kg1 {[%emt 0:00:06]} Rg5+ {[%emt 0:00:01]} 46. Kf1 {[%emt 0:00:01]} Bg4 {[%emt 0:00:06]} 47. h4 {[%emt 0:00:15]} Bh3+ {[%emt 0:00:04]} 48. Kf2 {[%emt 0:00:04]} Rh5 {[%emt 0:00:06]} 49. Kg3 {[%emt 0:00:01]} Bf5 {[%emt 0:00:05]} 50. Nxd5 {[%emt 0:00:08]} Ke5 {[%emt 0:00:04]} 51. Nf4 {[%emt 0:00:10]} Rh6 {[%emt 0:00:12]} 52. Rd5+ {[%emt 0:00:04]} Kf6 {[%emt 0:00:02]} 53. Rd6+ {[%emt 0:00:10]} Ke5 {[%emt 0:00:02]} 54. Rxa6 {[%emt 0:00:47]} Rxh4 {[%emt 0:00:25]} 55. Nxg6+ {[%emt 0:00:16]} hxg6 {[%emt 0:00:01]} 56. Kxh4 {[%emt 0:00:04]} Kf4 {[%emt 0:00:00]} 57. Ra7 {[%emt 0:00:13]} e3 {[%emt 0:00:11]} 58. Re7 {[%emt 0:00:04]} Kf3 {[%emt 0:00:01]} 59. Re5 {[%emt 0:00:33]} Be4 {[%emt 0:00:12]} 60. Kg5 {[%emt 0:00:13]} e2 {[%emt 0:00:02]} 61. Re8 {[%emt 0:00:07]} e1=Q {[%emt 0:00:01]} 62. Rf8+ {[%emt 0:00:01]} Ke3 {[%emt 0:00:01]} 63. Re8 {[%emt 0:00:01]} Qxc3 {[%emt 0:00:02]} 64. a4 {[%emt 0:00:03]} Qxb4 {[%emt 0:00:01]} 65. axb5 Qxb5+ {[%emt 0:00:01]} 66. Kg4 {[%emt 0:00:04]} Qxe8 {[%emt 0:00:01]} 67. Kg3 {[%emt 0:00:01]} Qe5+ {[%emt 0:00:01]} 68. Kg4 {[%emt 0:00:01]} Qf5+ {[%emt 0:00:01]} 69. Kg3 {[%emt 0:00:01]} Qf4+ {[%emt 0:00:02]} 70. Kh3 {[%emt 0:00:02]} Bf5+ {[%emt 0:00:04]} 71. Kg2 {[%emt 0:00:03]} Qf2+ {[%emt 0:00:05]} 72. Kh1 {[%emt 0:00:02]} Be4# {[%emt 0:00:01]} 0-1

[Event "3rd FIDE WCCC Rapid G10 2019"]
[Site "Minsk"]
[Date "2019.08.17"]
[Round "8.2"]
[White "Nurgaliyeva, Zarina"]
[Black "Toroptseva, Yevheniia"]
[Result "1-0"]
[ECO "B11"]
[WhiteElo "1474"]
[BlackElo "1496"]
[Annotator "NA"]
[PlyCount "155"]
[EventDate "2019.08.16"]
[EventType "swiss"]
[EventCountry "BLR"]
[SourceTitle "playchess.com"]
[Source "ChessBase"]
[SourceQuality "1"]
[TimeControl "600+5"]

1. e4 {[%emt 0:00:00]} c6 {[%emt 0:00:00]} 2. Nc3 {[%emt 0:00:00]} d5 {[%emt 0:00:00]} 3. Nf3 {[%emt 0:00:00]} Bg4 {[%emt 0:00:01]} 4. h3 {[%emt 0:00:02]} Bxf3 {[%emt 0:00:01]} 5. Qxf3 {[%emt 0:00:01]} e6 {[%emt 0:00:01]} 6. Be2 {[%emt 0:00:02]} d4 {[%emt 0:00:17]} 7. Nd1 {[%emt 0:00:27]} e5 {[%emt 0:00:13]} 8. O-O {[%emt 0:00:16]} a6 {[%emt 0:00:37]} 9. Bc4 {[%emt 0:00:10]} Qd7 {[%emt 0:00:31]} 10. d3 {[%emt 0:00:10]} b5 {[%emt 0:00:04]} 11. Bb3 {[%emt 0:00:03]} c5 {[%emt 0:00:10]} 12. Qg3 {[%emt 0:00:35]} f6 {[%emt 0:00:28]} 13. f4 {[%emt 0:00:10]} Bd6 {[%emt 0:00:08]} 14. Bd5 {[%emt 0:00:21]} Ra7 {[%emt 0:00:19]} 15. fxe5 {[%emt 0:00:19]} Bxe5 {[%emt 0:00:07]} 16. Bf4 {[%emt 0:00:02]} Qd6 {[%emt 0:00:21]} 17. Bxe5 {[%emt 0:01:04]} Qxe5 {[%emt 0:00:06]} 18. Qxe5+ {[%emt 0:00:25]} fxe5 {[%emt 0:00:02]} 19. Nf2 {[%emt 0:00:15]} Nf6 {[%emt 0:00:04]} 20. Bb3 {[%emt 0:00:26]} Nc6 {[%emt 0:00:12]} 21. a4 {[%emt 0:00:04]} b4 {[%emt 0:00:29]} 22. Nh1 {[%emt 0:01:37]} Na5 {[%emt 0:01:06]} 23. Ng3 {[%emt 0:00:35]} Rf8 {[%emt 0:00:40]} 24. Rf5 {[%emt 0:01:01]} Re7 {[%emt 0:00:35]} 25. Raf1 {[%emt 0:00:12]} Nxb3 {[%emt 0:00:27]} 26. cxb3 {[%emt 0:00:04]} Kd7 {[%emt 0:00:07]} 27. Nh5 {[%emt 0:01:46]} Ke6 {[%emt 0:00:11]} 28. g4 {[%emt 0:00:20]} Ref7 {[%emt 0:00:39]} 29. Ng3 {[%emt 0:01:12]} g6 {[%emt 0:00:32]} 30. R5f2 {[%emt 0:00:09]} Nd7 {[%emt 0:00:21]} 31. Ne2 {[%emt 0:00:35]} Rxf2 {[%emt 0:00:19]} 32. Rxf2 {[%emt 0:00:01]} Rxf2 {[%emt 0:00:01]} 33. Kxf2 {[%emt 0:00:01]} Nb8 {[%emt 0:00:03]} 34. Kg3 {[%emt 0:00:05]} Kf6 {[%emt 0:00:09]} 35. Kh4 {[%emt 0:00:09]} Nc6 {[%emt 0:00:15]} 36. Ng1 {[%emt 0:00:10]} Na5 {[%emt 0:00:06]} 37. Nf3 {[%emt 0:00:07]} Nxb3 {[%emt 0:00:05]} 38. g5+ {[%emt 0:00:02]} Ke6 {[%emt 0:00:02]} 39. Kg4 {[%emt 0:00:02]} Nc1 {[%emt 0:00:29]} 40. Ne1 {[%emt 0:00:02]} Ne2 {[%emt 0:00:04]} 41. h4 {[%emt 0:00:02]} Nf4 {[%emt 0:00:01]} 42. b3 {[%emt 0:00:07]} Ne2 {[%emt 0:00:22]} 43. Nf3 {[%emt 0:00:03]} Nc1 {[%emt 0:00:04]} 44. Nd2 {[%emt 0:00:00]} Nxd3 {[%emt 0:00:04]} 45. Kf3 {[%emt 0:00:02]} Nf4 {[%emt 0:00:05]} 46. Nc4 {[%emt 0:00:07]} Nd3 {[%emt 0:00:27]} 47. Ke2 {[%emt 0:00:14]} Nc1+ {[%emt 0:00:04]} 48. Kd2 {[%emt 0:00:04]} Nxb3+ {[%emt 0:00:01]} 49. Kc2 {[%emt 0:00:01]} Na1+ {[%emt 0:01:41]} 50. Kb2 {[%emt 0:00:02]} Kd7 {[%emt 0:00:21]} 51. Kxa1 {[%emt 0:00:02]} Kc6 {[%emt 0:00:03]} 52. Kb2 {[%emt 0:00:05]} Kd7 {[%emt 0:00:02]} 53. Kb3 {[%emt 0:00:02]} Ke6 {[%emt 0:00:04]} 54. Nd2 {[%emt 0:00:03]} Kd6 {[%emt 0:00:04]} 55. Kc4 {[%emt 0:00:01]} Kc6 {[%emt 0:00:03]} 56. Nb3 {[%emt 0:00:01]} Kb6 {[%emt 0:00:14]} 57. a5+ {[%emt 0:00:01]} Kc6 {[%emt 0:00:02]} 58. Nxc5 {[%emt 0:00:02]} b3 {[%emt 0:00:13]} 59. Nxb3 {[%emt 0:00:03]} d3 {[%emt 0:00:05]} 60. Kxd3 {[%emt 0:00:06]} Kb5 {[%emt 0:00:01]} 61. Kc3 {[%emt 0:00:02]} Kc6 {[%emt 0:00:06]} 62. Kc4 {[%emt 0:00:01]} Kd6 {[%emt 0:00:01]} 63. Nc5 {[%emt 0:00:01]} Kc6 {[%emt 0:00:03]} 64. Nxa6 {[%emt 0:00:02]} Kb7 {[%emt 0:00:01]} 65. Nb4 {[%emt 0:00:02]} Ka7 {[%emt 0:00:01]} 66. Kd5 {[%emt 0:00:02]} Kb7 {[%emt 0:00:03]} 67. Kxe5 Kc7 68. Kf6 {[%emt 0:00:03]} Kc8 {[%emt 0:00:01]} 69. e5 {[%emt 0:00:01]} Kd7 {[%emt 0:00:03]} 70. a6 {[%emt 0:00:01]} Kc7 {[%emt 0:00:00]} 71. e6 {[%emt 0:00:01]} Kc8 {[%emt 0:00:02]} 72. e7 {[%emt 0:00:01]} Kd7 {[%emt 0:00:01]} 73. a7 {[%emt 0:00:01]} Kc7 {[%emt 0:00:01]} 74. a8=Q {[%emt 0:00:03]} Kb6 {[%emt 0:00:01]} 75. e8=Q {[%emt 0:00:06]} Kc5 {[%emt 0:00:01]} 76. Qa5+ {[%emt 0:00:05]} Kc4 {[%emt 0:00:02]} 77. Qc6+ {[%emt 0:00:05]} Kb3 {[%emt 0:00:01]} 78. Qc2# {[%emt 0:00:04]} 1-0

[Event "3rd FIDE WCCC Rapid G10 2019"]
[Site "Minsk"]
[Date "2019.08.17"]
[Round "8.3"]
[White "Dolinskaya, Mariia"]
[Black "Shukhman, Anna"]
[Result "0-1"]
[ECO "A43"]
[WhiteElo "1460"]
[BlackElo "1806"]
[Annotator "NA"]
[PlyCount "78"]
[EventDate "2019.08.16"]
[EventType "swiss"]
[EventCountry "BLR"]
[SourceTitle "playchess.com"]
[Source "ChessBase"]
[SourceQuality "1"]
[TimeControl "600+5"]

1. d4 {[%emt 0:00:00]} Nf6 {[%emt 0:00:00]} 2. Nf3 {[%emt 0:00:00]} c5 {[%emt 0:00:00]} 3. d5 {[%emt 0:00:02]} b5 {[%emt 0:00:00]} 4. e3 {[%emt 0:00:41]} Bb7 {[%emt 0:00:02]} 5. c4 {[%emt 0:00:05]} d6 {[%emt 0:00:16]} 6. Nc3 {[%emt 0:00:15]} b4 {[%emt 0:00:01]} 7. Ne2 {[%emt 0:00:16]} g6 {[%emt 0:00:05]} 8. Nf4 {[%emt 0:00:24]} Bg7 {[%emt 0:00:06]} 9. Be2 {[%emt 0:00:07]} O-O {[%emt 0:00:03]} 10. O-O {[%emt 0:00:03]} Nbd7 {[%emt 0:00:13]} 11. Qc2 {[%emt 0:00:09]} Nb6 {[%emt 0:00:06]} 12. Rb1 {[%emt 0:00:19]} Bc8 {[%emt 0:00:06]} 13. Bd3 {[%emt 0:00:31]} Bg4 {[%emt 0:00:12]} 14. Qe2 {[%emt 0:00:14]} Nfd7 {[%emt 0:00:50]} 15. h3 {[%emt 0:00:45]} Bxf3 {[%emt 0:00:04]} 16. Qxf3 {[%emt 0:00:02]} Ne5 {[%emt 0:00:03]} 17. Qe2 {[%emt 0:00:05]} a5 {[%emt 0:00:24]} 18. b3 {[%emt 0:01:01]} a4 {[%emt 0:00:19]} 19. Bb2 {[%emt 0:00:42]} axb3 {[%emt 0:00:36]} 20. axb3 {[%emt 0:00:12]} Ra2 {[%emt 0:00:10]} 21. Ra1 {[%emt 0:00:37]} Rxb2 {[%emt 0:00:11]} 22. Qd1 {[%emt 0:00:50]} Qc7 {[%emt 0:01:28]} 23. Kh1 {[%emt 0:01:02]} Qb7 {[%emt 0:00:12]} 24. Bc2 {[%emt 0:01:31]} Ra8 {[%emt 0:00:15]} 25. Rxa8+ {[%emt 0:00:57]} Qxa8 {[%emt 0:00:03]} 26. Bb1 {[%emt 0:00:18]} Qa3 {[%emt 0:00:20]} 27. Nd3 {[%emt 0:00:21]} Nxd3 {[%emt 0:00:06]} 28. Qxd3 {[%emt 0:00:05]} Qxb3 {[%emt 0:00:15]} 29. Qxb3 {[%emt 0:00:21]} Rxb3 {[%emt 0:00:02]} 30. Be4 {[%emt 0:00:03]} Nxc4 {[%emt 0:00:06]} 31. Rc1 {[%emt 0:00:06]} Nd2 {[%emt 0:00:04]} 32. Bc2 {[%emt 0:00:05]} Rc3 {[%emt 0:00:03]} 33. Kg1 {[%emt 0:00:11]} b3 {[%emt 0:00:03]} 34. f3 {[%emt 0:00:18]} b2 {[%emt 0:00:14]} 35. Rb1 {[%emt 0:00:07]} Nxb1 {[%emt 0:00:05]} 36. Bxb1 {[%emt 0:00:02]} Rc1+ {[%emt 0:00:02]} 37. Kf2 {[%emt 0:00:01]} Rxb1 {[%emt 0:00:02]} 38. Ke2 {[%emt 0:00:02]} Ra1 {[%emt 0:00:02]} 39. Kd3 {[%emt 0:00:04]} b1=Q+ {[%emt 0:00:03]} 0-1

[Event "3rd FIDE WCCC Rapid G10 2019"]
[Site "Minsk"]
[Date "2019.08.17"]
[Round "8.4"]
[White "Satanovskaia, Evgeniia"]
[Black "Liashkevich, Lizaveta"]
[Result "1-0"]
[ECO "D35"]
[WhiteElo "1399"]
[BlackElo "1370"]
[Annotator "NA"]
[PlyCount "65"]
[EventDate "2019.08.16"]
[EventType "swiss"]
[EventCountry "BLR"]
[SourceTitle "playchess.com"]
[Source "ChessBase"]
[SourceQuality "1"]
[TimeControl "600+5"]

1. d4 {[%emt 0:00:00]} d5 {[%emt 0:00:00]} 2. c4 {[%emt 0:00:00]} e6 {[%emt 0:00:00]} 3. Nc3 {[%emt 0:00:00]} Nf6 {[%emt 0:00:03]} 4. cxd5 {[%emt 0:00:00]} exd5 {[%emt 0:00:02]} 5. Bg5 {[%emt 0:00:00]} Be7 {[%emt 0:00:03]} 6. e3 {[%emt 0:00:01]} h6 {[%emt 0:00:04]} 7. Bh4 {[%emt 0:00:00]} O-O {[%emt 0:00:04]} 8. Qc2 {[%emt 0:00:01]} b6 {[%emt 0:00:29]} 9. Bd3 {[%emt 0:00:05]} Bb7 {[%emt 0:00:04]} 10. Nge2 {[%emt 0:00:06]} Nbd7 {[%emt 0:00:48]} 11. O-O {[%emt 0:00:12]} c5 {[%emt 0:00:16]} 12. Rad1 {[%emt 0:00:35]} Ne4 {[%emt 0:01:34]} 13. Bxe4 {[%emt 0:00:59]} dxe4 {[%emt 0:00:04]} 14. Bxe7 {[%emt 0:00:10]} Qxe7 {[%emt 0:00:02]} 15. d5 {[%emt 0:00:27]} f5 {[%emt 0:00:53]} 16. Nf4 {[%emt 0:00:03]} Ne5 {[%emt 0:00:30]} 17. Qb3 {[%emt 0:00:47]} Kh7 {[%emt 0:00:33]} 18. Nce2 {[%emt 0:01:50]} Ba6 {[%emt 0:00:28]} 19. Rfe1 {[%emt 0:00:30]} Bd3 {[%emt 0:01:06]} 20. Qc3 {[%emt 0:00:17]} Qf6 {[%emt 0:00:24]} 21. Ne6 {[%emt 0:00:40]} Rf7 {[%emt 0:00:27]} 22. N2f4 {[%emt 0:00:26]} Rd7 {[%emt 0:00:13]} 23. Nh5 {[%emt 0:00:47]} Qg5 {[%emt 0:00:09]} 24. Nxg5+ {[%emt 0:00:03]} hxg5 {[%emt 0:00:08]} 25. Qxe5 {[%emt 0:00:03]} Rf7 {[%emt 0:00:25]} 26. Rxd3 exd3 {[%emt 0:00:05]} 27. Qc3 {[%emt 0:00:27]} Kh6 {[%emt 0:00:08]} 28. Ng3 {[%emt 0:00:05]} Re8 {[%emt 0:00:16]} 29. Qxd3 {[%emt 0:00:09]} f4 {[%emt 0:00:11]} 30. Nf5+ {[%emt 0:00:02]} Kh5 {[%emt 0:00:08]} 31. Nd6 {[%emt 0:00:11]} Rfe7 {[%emt 0:00:10]} 32. Qh7+ {[%emt 0:00:01]} Kg4 {[%emt 0:00:03]} 33. Qh3# 1-0

[Event "3rd FIDE WCCC Rapid G10 2019"]
[Site "Minsk"]
[Date "2019.08.17"]
[Round "8.5"]
[White "Konkol, Sandra"]
[Black "Mizerova, Yana"]
[Result "0-1"]
[ECO "C02"]
[WhiteElo "1257"]
[BlackElo "1336"]
[Annotator "NA"]
[PlyCount "144"]
[EventDate "2019.08.16"]
[EventType "swiss"]
[EventCountry "BLR"]
[SourceTitle "playchess.com"]
[Source "ChessBase"]
[SourceQuality "1"]
[TimeControl "600+5"]

1. e4 {[%emt 0:00:00]} e6 {[%emt 0:00:00]} 2. d4 {[%emt 0:00:00]} d5 {[%emt 0:00:00]} 3. e5 {[%emt 0:00:00]} c5 {[%emt 0:00:00]} 4. c3 {[%emt 0:00:00]} Nc6 {[%emt 0:00:03]} 5. Nf3 {[%emt 0:00:00]} Bd7 {[%emt 0:00:02]} 6. Be2 {[%emt 0:00:05]} f6 {[%emt 0:00:22]} 7. exf6 {[%emt 0:00:07]} Nxf6 {[%emt 0:00:05]} 8. Bg5 {[%emt 0:00:12]} Be7 {[%emt 0:00:04]} 9. O-O {[%emt 0:00:06]} O-O {[%emt 0:00:08]} 10. Re1 {[%emt 0:00:14]} cxd4 {[%emt 0:00:48]} 11. Nxd4 {[%emt 0:00:10]} Nxd4 {[%emt 0:00:28]} 12. Qxd4 {[%emt 0:00:06]} Ne4 {[%emt 0:00:30]} 13. Bxe7 {[%emt 0:00:21]} Qxe7 {[%emt 0:00:03]} 14. f3 {[%emt 0:00:25]} Nd6 {[%emt 0:00:18]} 15. Nd2 {[%emt 0:00:12]} Nf5 {[%emt 0:00:18]} 16. Qd3 {[%emt 0:00:25]} Qg5 {[%emt 0:00:54]} 17. Rf1 {[%emt 0:00:46]} a6 {[%emt 0:00:45]} 18. Ne4 {[%emt 0:01:58]} Qh6 {[%emt 0:02:51]} 19. Nc5 {[%emt 0:00:25]} Bb5 {[%emt 0:00:10]} 20. Qc2 {[%emt 0:00:57]} Qe3+ {[%emt 0:00:05]} 21. Rf2 {[%emt 0:00:08]} Qxc5 {[%emt 0:00:07]} 22. Bxb5 {[%emt 0:00:07]} Qxb5 {[%emt 0:00:10]} 23. Re1 {[%emt 0:00:06]} Rae8 {[%emt 0:00:21]} 24. Rfe2 {[%emt 0:00:11]} Qb6+ {[%emt 0:00:09]} 25. Kh1 {[%emt 0:00:08]} Rf6 {[%emt 0:00:08]} 26. Re5 {[%emt 0:00:45]} Rc8 {[%emt 0:00:28]} 27. f4 {[%emt 0:01:06]} d4 {[%emt 0:00:33]} 28. Qd2 {[%emt 0:00:59]} dxc3 {[%emt 0:00:19]} 29. bxc3 {[%emt 0:00:03]} Qd6 {[%emt 0:00:11]} 30. Qb2 {[%emt 0:00:23]} Qc6 {[%emt 0:00:26]} 31. Qb3 {[%emt 0:00:25]} Nh4 {[%emt 0:00:21]} 32. R1e2 {[%emt 0:00:28]} Qxc3 {[%emt 0:00:13]} 33. Qxb7 {[%emt 0:00:16]} Qc6 {[%emt 0:00:15]} 34. Qb3 {[%emt 0:00:15]} Rxf4 {[%emt 0:00:19]} 35. h3 {[%emt 0:00:34]} Rf1+ {[%emt 0:00:22]} 36. Kh2 {[%emt 0:00:03]} Qd6 37. g3 {[%emt 0:00:13]} Qc6 {[%emt 0:00:35]} 38. Qxe6+ {[%emt 0:00:16]} Qxe6 {[%emt 0:00:02]} 39. Rxe6 {[%emt 0:00:02]} Ng6 {[%emt 0:00:05]} 40. Rxa6 {[%emt 0:00:06]} Rcf8 {[%emt 0:00:04]} 41. Ra7 {[%emt 0:00:11]} R8f2+ {[%emt 0:00:03]} 42. Rxf2 {[%emt 0:00:02]} Rxf2+ {[%emt 0:00:01]} 43. Kg1 {[%emt 0:00:02]} Rd2 {[%emt 0:00:07]} 44. a4 {[%emt 0:00:02]} Ra2 {[%emt 0:00:07]} 45. a5 {[%emt 0:00:01]} Ne5 {[%emt 0:00:04]} 46. a6 {[%emt 0:00:03]} Nc6 {[%emt 0:00:13]} 47. Ra8+ {[%emt 0:00:09]} Kf7 {[%emt 0:00:01]} 48. Kf1 {[%emt 0:00:06]} Nb4 {[%emt 0:00:02]} 49. a7 {[%emt 0:00:09]} Nc6 {[%emt 0:00:02]} 50. Rc8 {[%emt 0:00:07]} Nxa7 {[%emt 0:00:03]} 51. Rc7+ {[%emt 0:00:02]} Kf6 {[%emt 0:00:04]} 52. Rb7 {[%emt 0:00:03]} Ra6 {[%emt 0:00:04]} 53. Ke2 {[%emt 0:00:02]} Nc6 {[%emt 0:00:04]} 54. Kf3 {[%emt 0:00:04]} Ne5+ {[%emt 0:00:03]} 55. Ke4 {[%emt 0:00:06]} Ra4+ {[%emt 0:00:09]} 56. Ke3 {[%emt 0:00:03]} Ra3+ {[%emt 0:00:03]} 57. Kf2 {[%emt 0:00:02]} Nd3+ {[%emt 0:00:02]} 58. Kg2 {[%emt 0:00:03]} Ra2+ {[%emt 0:00:06]} 59. Kf3 {[%emt 0:00:02]} Ne5+ {[%emt 0:00:02]} 60. Kf4 {[%emt 0:00:04]} Rf2+ {[%emt 0:00:06]} 61. Ke3 {[%emt 0:00:03]} Rf3+ {[%emt 0:00:03]} 62. Ke2 {[%emt 0:00:02]} Rxg3 {[%emt 0:00:03]} 63. Rb6+ {[%emt 0:00:02]} Kf5 {[%emt 0:00:04]} 64. Rb5 {[%emt 0:00:01]} Rxh3 {[%emt 0:00:03]} 65. Kf2 {[%emt 0:00:05]} g5 {[%emt 0:00:06]} 66. Kg2 {[%emt 0:00:03]} Ra3 {[%emt 0:00:05]} 67. Rb7 {[%emt 0:00:06]} h5 {[%emt 0:00:04]} 68. Rh7 {[%emt 0:00:05]} Ra2+ {[%emt 0:00:05]} 69. Kh1 {[%emt 0:00:09]} Kg4 {[%emt 0:00:04]} 70. Kg1 {[%emt 0:00:06]} h4 {[%emt 0:00:06]} 71. Kh1 {[%emt 0:00:03]} Kg3 {[%emt 0:00:02]} 72. Rg7 {[%emt 0:00:20]} Ra1# {[%emt 0:00:02]} 0-1